[Event "*** Titled Tuesday Blitz"]
[Site "Chess.com"]
[Date "2018.04.03"]
[Round "4"]
[White "Blitzstream"]
[Black "TastyFrenchFries"]
[Result "0-1"]
[WhiteElo "2440"]
[BlackElo "2313"]
[TimeControl "180+2"]
[EndTime "13:51:16 PDT"]
[Termination "TastyFrenchFries won by checkmate"]

1. e4 {[%clk 0:03:01.9]} 1... e6 {[%clk 0:03:01.8]} 2. d4 {[%clk 0:03:01.9]}
2... d5 {[%clk 0:02:57.7]} 3. exd5 {[%clk 0:03:03.8]} 3... exd5 {[%clk
0:02:57.6]} 4. Nf3 {[%clk 0:03:05.4]} 4... Bd6 {[%clk 0:02:57.8]} 5. c4 {[%clk
0:03:06]} 5... Nf6 {[%clk 0:02:48.4]} 6. Be2 {[%clk 0:02:59.5]} 6... dxc4 {[%clk
0:02:46.7]} 7. Bxc4 {[%clk 0:02:59.4]} 7... O-O {[%clk 0:02:45.8]} 8. O-O {[%clk
0:03:00]} 8... Bf5 {[%clk 0:02:44.6]} 9. Nc3 {[%clk 0:02:59.4]} 9... Nbd7 {[%clk
0:02:43.5]} 10. Bg5 {[%clk 0:02:59.3]} 10... h6 {[%clk 0:02:36.3]} 11. Bh4
{[%clk 0:02:59.8]} 11... c6 {[%clk 0:02:37.3]} 12. Bb3 {[%clk 0:02:45.2]} 12...
Re8 {[%clk 0:02:11]} 13. Re1 {[%clk 0:02:41]} 13... Qc7 {[%clk 0:02:10.3]} 14.
Rc1 {[%clk 0:02:29.6]} 14... Rxe1+ {[%clk 0:02:05.2]} 15. Qxe1 {[%clk
0:02:29.8]} 15... Re8 {[%clk 0:02:05]} 16. Qf1 {[%clk 0:02:16.9]} 16... Qb8
{[%clk 0:01:59.6]} 17. Bg3 {[%clk 0:01:29.5]} 17... Bxg3 {[%clk 0:01:44.3]} 18.
hxg3 {[%clk 0:01:29.4]} 18... Be6 {[%clk 0:01:45.8]} 19. Bc2 {[%clk 0:01:16.1]}
19... Nb6 {[%clk 0:01:36.5]} 20. Qd3 {[%clk 0:01:08.8]} 20... Bc4 {[%clk
0:01:34.7]} 21. Qf5 {[%clk 0:00:59.5]} 21... Qd6 {[%clk 0:01:31.9]} 22. a3
{[%clk 0:00:51.2]} 22... g6 {[%clk 0:01:27.2]} 23. Qh3 {[%clk 0:00:47.1]} 23...
Kg7 {[%clk 0:01:26.1]} 24. Rd1 {[%clk 0:00:34.9]} 24... Be2 {[%clk 0:01:24.1]}
25. Nxe2 {[%clk 0:00:34.8]} 25... Rxe2 {[%clk 0:01:26]} 26. Bb1 {[%clk
0:00:16.8]} 26... Rxb2 {[%clk 0:01:22.7]} 27. Qh4 {[%clk 0:00:17.4]} 27... Qxa3
{[%clk 0:01:21]} 28. Qf4 {[%clk 0:00:13.6]} 28... Nbd5 {[%clk 0:01:17.8]} 29.
Qc1 {[%clk 0:00:13.6]} 29... Qb4 {[%clk 0:01:14.2]} 30. Re1 {[%clk 0:00:08.1]}
30... a5 {[%clk 0:01:13.6]} 31. Ne5 {[%clk 0:00:08.7]} 31... Qxd4 {[%clk
0:01:12.5]} 32. Nd3 {[%clk 0:00:06.3]} 32... Rb3 {[%clk 0:01:11.4]} 33. Rd1
{[%clk 0:00:07.3]} 33... a4 {[%clk 0:01:08.2]} 34. Bc2 {[%clk 0:00:03.3]} 34...
Rc3 {[%clk 0:01:02]} 35. Qd2 {[%clk 0:00:04.6]} 35... Ne4 {[%clk 0:01:01.3]} 36.
Qe2 {[%clk 0:00:04.7]} 36... a3 {[%clk 0:00:48.5]} 37. Bb1 {[%clk 0:00:05.9]}
37... Nxg3 {[%clk 0:00:39.2]} 38. Qe8 {[%clk 0:00:05.8]} 38... Nf4 {[%clk
0:00:32]} 39. Ba2 {[%clk 0:00:06.5]} 39... Nfe2+ {[%clk 0:00:29.3]} 40. Kh2
{[%clk 0:00:07.2]} 40... Qh4# {[%clk 0:00:29.9]} 0-1

[Event "*** Titled Tuesday Blitz"]
[Site "Chess.com"]
[Date "2018.04.03"]
[Round "4"]
[White "PulpanJ"]
[Black "toad"]
[Result "1-0"]
[WhiteElo "2423"]
[BlackElo "2250"]
[TimeControl "180+2"]
[EndTime "13:51:32 PDT"]
[Termination "PulpanJ won on time"]

1. e4 {[%clk 0:03:01.3]} 1... c5 {[%clk 0:03:00.3]} 2. Nf3 {[%clk 0:03:00.3]}
2... d6 {[%clk 0:03:01.5]} 3. d4 {[%clk 0:02:59.1]} 3... cxd4 {[%clk 0:03:03.4]}
4. Nxd4 {[%clk 0:03:00.9]} 4... Nf6 {[%clk 0:03:04.5]} 5. Nc3 {[%clk 0:02:56.8]}
5... a6 {[%clk 0:03:05.3]} 6. Be2 {[%clk 0:02:49.5]} 6... e5 {[%clk 0:03:05.7]}
7. Nb3 {[%clk 0:02:47.6]} 7... Be7 {[%clk 0:03:06.1]} 8. O-O {[%clk 0:02:42.3]}
8... O-O {[%clk 0:03:05.2]} 9. Qd3 {[%clk 0:02:29.7]} 9... Nbd7 {[%clk
0:02:46.4]} 10. Rd1 {[%clk 0:02:19.4]} 10... Qc7 {[%clk 0:02:38]} 11. Qg3 {[%clk
0:02:10]} 11... Kh8 {[%clk 0:02:26.1]} 12. a4 {[%clk 0:02:06.1]} 12... b6 {[%clk
0:02:25.8]} 13. Bg5 {[%clk 0:01:57.5]} 13... Bb7 {[%clk 0:02:26.1]} 14. Bf3
{[%clk 0:01:55.1]} 14... Rac8 {[%clk 0:02:18.5]} 15. Be3 {[%clk 0:01:41.7]}
15... Nc5 {[%clk 0:02:01]} 16. Nxc5 {[%clk 0:01:39.5]} 16... dxc5 {[%clk
0:01:50.9]} 17. Bg5 {[%clk 0:01:00.7]} 17... Rcd8 {[%clk 0:01:38.9]} 18. Bxf6
{[%clk 0:01:00.7]} 18... Bxf6 {[%clk 0:01:39.4]} 19. Nd5 {[%clk 0:00:57.6]}
19... Bxd5 {[%clk 0:01:40.4]} 20. exd5 {[%clk 0:00:57.7]} 20... Rd6 {[%clk
0:01:11.2]} 21. Be2 {[%clk 0:00:56.6]} 21... Rfd8 {[%clk 0:00:59.4]} 22. Qb3
{[%clk 0:00:49.5]} 22... Qb7 {[%clk 0:00:49]} 23. Bc4 {[%clk 0:00:40.8]} 23...
a5 {[%clk 0:00:34.1]} 24. Qg3 {[%clk 0:00:37.8]} 24... Qe7 {[%clk 0:00:32.9]}
25. Re1 {[%clk 0:00:33.5]} 25... e4 {[%clk 0:00:26.1]} 26. c3 {[%clk 0:00:28.9]}
26... Be5 {[%clk 0:00:10.2]} 27. Rxe4 {[%clk 0:00:27.4]} 27... Bxg3 {[%clk
0:00:05.4]} 28. Rxe7 {[%clk 0:00:27.8]} 28... Bh4 {[%clk 0:00:03.5]} 29. Rxf7
{[%clk 0:00:28.4]} 29... Bf6 {[%clk 0:00:04.8]} 30. Re1 {[%clk 0:00:28.6]} 30...
h6 {[%clk 0:00:05.7]} 31. g3 {[%clk 0:00:28.8]} 31... Kg8 {[%clk 0:00:06.4]} 32.
Rb7 {[%clk 0:00:29.3]} 32... Kh8 {[%clk 0:00:06.4]} 33. Kg2 {[%clk 0:00:30.5]}
33... Kh7 {[%clk 0:00:06.9]} 34. h4 {[%clk 0:00:31.7]} 34... h5 {[%clk
0:00:05.3]} 35. Kf3 {[%clk 0:00:32.1]} 35... Kg6 {[%clk 0:00:04.6]} 36. Bd3+
{[%clk 0:00:32.7]} 36... Kh6 {[%clk 0:00:03.8]} 37. c4 {[%clk 0:00:33.1]} 37...
R8d7 {[%clk 0:00:03.1]} 38. Rxd7 {[%clk 0:00:32.9]} 38... Rxd7 {[%clk 0:00:05]}
39. Re6 {[%clk 0:00:34.7]} 1-0

[Event "*** Titled Tuesday Blitz"]
[Site "Chess.com"]
[Date "2018.04.03"]
[Round "4"]
[White "Noukii"]
[Black "Vice64"]
[Result "1-0"]
[WhiteElo "2607"]
[BlackElo "2362"]
[TimeControl "180+2"]
[EndTime "13:51:43 PDT"]
[Termination "Noukii won by resignation"]

1. d4 {[%clk 0:03:01.9]} 1... Nf6 {[%clk 0:02:58.8]} 2. c4 {[%clk 0:03:01.8]}
2... g6 {[%clk 0:02:58.6]} 3. Nc3 {[%clk 0:02:59.9]} 3... Bg7 {[%clk 0:03:00.2]}
4. Nf3 {[%clk 0:03:00.8]} 4... O-O {[%clk 0:03:01]} 5. Bg5 {[%clk 0:03:02.4]}
5... h6 {[%clk 0:03:00.3]} 6. Bh4 {[%clk 0:03:03.2]} 6... d6 {[%clk 0:03:01]} 7.
e3 {[%clk 0:03:04.2]} 7... c5 {[%clk 0:02:56.3]} 8. d5 {[%clk 0:03:05.5]} 8...
Qb6 {[%clk 0:02:53]} 9. Qc1 {[%clk 0:03:06.1]} 9... Bf5 {[%clk 0:02:53.1]} 10.
Nd2 {[%clk 0:03:07]} 10... g5 {[%clk 0:02:51.6]} 11. Bg3 {[%clk 0:03:07.8]}
11... a6 {[%clk 0:02:52.1]} 12. Be2 {[%clk 0:03:06]} 12... e5 {[%clk 0:02:44.8]}
13. h4 {[%clk 0:02:53.2]} 13... Nbd7 {[%clk 0:02:35.9]} 14. hxg5 {[%clk
0:02:49.2]} 14... hxg5 {[%clk 0:02:35.1]} 15. e4 {[%clk 0:02:32.5]} 15... Bg6
{[%clk 0:02:34.8]} 16. Qc2 {[%clk 0:02:28.3]} 16... Qa5 {[%clk 0:02:31.7]} 17.
Kf1 {[%clk 0:02:07.3]} 17... b5 {[%clk 0:02:30.4]} 18. Kg1 {[%clk 0:02:00.3]}
18... b4 {[%clk 0:02:29]} 19. Nd1 {[%clk 0:02:00.1]} 19... b3 {[%clk 0:02:23.8]}
20. Nxb3 {[%clk 0:01:59.8]} 20... Qe1+ {[%clk 0:02:16.5]} 21. Kh2 {[%clk
0:02:00.7]} 21... Qb4 {[%clk 0:02:16.7]} 22. Nc3 {[%clk 0:01:57.2]} 22... Rab8
{[%clk 0:02:14.4]} 23. Rab1 {[%clk 0:01:57]} 23... Nh5 {[%clk 0:02:08.4]} 24.
Nd2 {[%clk 0:01:29.5]} 24... Nf4 {[%clk 0:02:06.7]} 25. Bg4 {[%clk 0:01:20.2]}
25... Nf6 {[%clk 0:02:05.4]} 26. Bf5 {[%clk 0:01:14.4]} 26... Bxf5 {[%clk
0:02:03.8]} 27. exf5 {[%clk 0:01:16.3]} 27... Rfe8 {[%clk 0:01:59.1]} 28. Nde4
{[%clk 0:01:15.1]} 28... Nh7 {[%clk 0:01:41.4]} 29. Nxd6 {[%clk 0:01:14.3]}
29... Red8 {[%clk 0:01:41.9]} 30. Nde4 {[%clk 0:01:15]} 30... Qxc4 {[%clk
0:01:42.3]} 31. b3 {[%clk 0:01:12.4]} 31... Qd3 {[%clk 0:01:35]} 32. Qxd3 {[%clk
0:01:13.3]} 32... Nxd3 {[%clk 0:01:35.1]} 33. Rhd1 {[%clk 0:01:14.9]} 33... Nb4
{[%clk 0:01:26.4]} 34. Rd2 {[%clk 0:01:08.6]} 34... Nf6 {[%clk 0:01:22.4]} 35.
Nxf6+ {[%clk 0:01:09.5]} 35... Bxf6 {[%clk 0:01:22.3]} 36. Ne4 {[%clk
0:01:11.4]} 36... Kg7 {[%clk 0:01:20.4]} 37. Rbd1 {[%clk 0:01:12.3]} 37... Rbc8
{[%clk 0:01:18.9]} 38. a3 {[%clk 0:01:12.4]} 38... c4 {[%clk 0:01:13.9]} 39.
bxc4 {[%clk 0:00:59.1]} 39... Rxc4 {[%clk 0:01:13.1]} 40. f3 {[%clk 0:01:00.3]}
40... a5 {[%clk 0:01:07.3]} 41. axb4 {[%clk 0:01:01.1]} 41... axb4 {[%clk
0:01:06.2]} 42. Kg1 {[%clk 0:00:58.9]} 42... b3 {[%clk 0:01:06.4]} 43. Rb1
{[%clk 0:00:58.5]} 43... Rb8 {[%clk 0:01:05.4]} 44. Rdb2 {[%clk 0:00:57.5]}
44... Rcb4 {[%clk 0:01:05.5]} 45. Be1 {[%clk 0:00:57.4]} 45... R4b5 {[%clk
0:01:05.9]} 46. d6 {[%clk 0:00:58.8]} 46... Bd8 {[%clk 0:01:04.8]} 47. Kf1
{[%clk 0:00:59.4]} 47... f6 {[%clk 0:01:00.7]} 48. Ke2 {[%clk 0:01:00.4]} 48...
Kf7 {[%clk 0:01:01.5]} 49. Kd3 {[%clk 0:01:01.6]} 49... Ke8 {[%clk 0:01:01.6]}
50. Kc4 {[%clk 0:01:02.7]} 50... Kd7 {[%clk 0:00:56.3]} 51. Rxb3 {[%clk
0:01:03.1]} 51... Rxb3 {[%clk 0:00:56.1]} 52. Rxb3 {[%clk 0:01:05]} 52... Rxb3
{[%clk 0:00:56.3]} 53. Kxb3 {[%clk 0:01:06.1]} 53... Kc6 {[%clk 0:00:58.2]} 54.
Kc4 {[%clk 0:01:07.4]} 54... Bb6 {[%clk 0:00:58.5]} 55. Bb4 {[%clk 0:01:06.7]}
55... Be3 {[%clk 0:00:56]} 56. Nxf6 {[%clk 0:01:07.3]} 56... Bf4 {[%clk
0:00:56.3]} 57. d7 {[%clk 0:01:07.4]} 1-0

[Event "*** Titled Tuesday Blitz"]
[Site "Chess.com"]
[Date "2018.04.03"]
[Round "4"]
[White "Chesscoach_Golichenko"]
[Black "Jospem"]
[Result "1-0"]
[WhiteElo "2498"]
[BlackElo "2732"]
[TimeControl "180+2"]
[EndTime "13:51:46 PDT"]
[Termination "Chesscoach_Golichenko won by resignation"]

1. d4 {[%clk 0:03:01.9]} 1... Nf6 {[%clk 0:02:59.9]} 2. c4 {[%clk 0:03:01.4]}
2... e6 {[%clk 0:03:01]} 3. Nc3 {[%clk 0:03:01.5]} 3... Bb4 {[%clk 0:03:01.8]}
4. Qc2 {[%clk 0:03:02.5]} 4... d6 {[%clk 0:03:01.6]} 5. a3 {[%clk 0:03:03.1]}
5... Bxc3+ {[%clk 0:03:01.9]} 6. Qxc3 {[%clk 0:03:05]} 6... b6 {[%clk
0:03:00.1]} 7. f3 {[%clk 0:03:05.2]} 7... c5 {[%clk 0:02:55.9]} 8. Bg5 {[%clk
0:02:58.2]} 8... h6 {[%clk 0:02:46.4]} 9. Bh4 {[%clk 0:02:58.5]} 9... Nc6 {[%clk
0:02:43.2]} 10. e3 {[%clk 0:02:59.3]} 10... Qe7 {[%clk 0:02:36]} 11. Bd3 {[%clk
0:02:53]} 11... Bb7 {[%clk 0:02:37]} 12. Ne2 {[%clk 0:02:52.9]} 12... g5 {[%clk
0:02:37.9]} 13. Bf2 {[%clk 0:02:52.7]} 13... Rg8 {[%clk 0:02:35.7]} 14. b4
{[%clk 0:02:45.8]} 14... cxd4 {[%clk 0:02:25.5]} 15. exd4 {[%clk 0:02:42]} 15...
Rc8 {[%clk 0:02:26.2]} 16. Qd2 {[%clk 0:02:36.2]} 16... Nb8 {[%clk 0:02:25.3]}
17. h4 {[%clk 0:01:26.5]} 17... g4 {[%clk 0:02:23.2]} 18. Qxh6 {[%clk
0:01:26.2]} 18... gxf3 {[%clk 0:02:24.4]} 19. gxf3 {[%clk 0:01:27.4]} 19... Bxf3
{[%clk 0:02:20.1]} 20. Rg1 {[%clk 0:01:28.4]} 20... Bxe2 {[%clk 0:02:20.7]} 21.
Kxe2 {[%clk 0:01:27]} 21... Nbd7 {[%clk 0:02:00.4]} 22. h5 {[%clk 0:01:15.3]}
22... Kd8 {[%clk 0:01:38.5]} 23. Rxg8+ {[%clk 0:01:08.5]} 23... Nxg8 {[%clk
0:01:39.1]} 24. Qg7 {[%clk 0:01:09.2]} 24... Kc7 {[%clk 0:01:31.8]} 25. h6
{[%clk 0:01:05.4]} 25... e5 {[%clk 0:01:22.1]} 26. h7 {[%clk 0:01:01.4]} 26...
exd4+ {[%clk 0:01:21.8]} 27. Kd2 {[%clk 0:00:55.7]} 27... Qf6 {[%clk 0:00:40.7]}
28. Bxd4 {[%clk 0:00:24.9]} 28... Qf4+ {[%clk 0:00:34.8]} 29. Kc3 {[%clk
0:00:21.9]} 29... Ne7 {[%clk 0:00:14.2]} 30. h8=Q {[%clk 0:00:20.9]} 30... Rxh8
{[%clk 0:00:14.7]} 31. Qxh8 {[%clk 0:00:22.2]} 31... Nc6 {[%clk 0:00:16.1]} 32.
Rf1 {[%clk 0:00:21.7]} 32... Qg5 {[%clk 0:00:15.2]} 33. Qg7 {[%clk 0:00:17.4]}
33... Qh4 {[%clk 0:00:13]} 34. b5 {[%clk 0:00:14.7]} 34... Nce5 {[%clk
0:00:10.8]} 35. Bxe5 {[%clk 0:00:14.2]} 35... Nxe5 {[%clk 0:00:12.7]} 36. Rxf7+
{[%clk 0:00:14.9]} 36... Nxf7 {[%clk 0:00:14.6]} 37. Qxf7+ {[%clk 0:00:16.3]}
37... Kd8 {[%clk 0:00:15.9]} 38. Qg8+ {[%clk 0:00:17.4]} 38... Kd7 {[%clk
0:00:13]} 39. Qh7+ {[%clk 0:00:18.5]} 39... Qe7 {[%clk 0:00:14.9]} 40. Bf5+
{[%clk 0:00:18.7]} 40... Kd8 {[%clk 0:00:15.7]} 41. Qxe7+ {[%clk 0:00:19.2]}
41... Kxe7 {[%clk 0:00:16.9]} 42. Kd4 {[%clk 0:00:20.7]} 42... d5 {[%clk
0:00:18.8]} 43. Kxd5 {[%clk 0:00:21.7]} 43... Kd8 {[%clk 0:00:20.7]} 44. Kc6
{[%clk 0:00:22.8]} 44... a6 {[%clk 0:00:22.6]} 1-0

[Event "*** Titled Tuesday Blitz"]
[Site "Chess.com"]
[Date "2018.04.03"]
[Round "4"]
[White "WinnerOleg"]
[Black "PowerThinking2650"]
[Result "1-0"]
[WhiteElo "2348"]
[BlackElo "2224"]
[TimeControl "180+2"]
[EndTime "13:51:47 PDT"]
[Termination "WinnerOleg won by checkmate"]

1. b3 {[%clk 0:03:01.9]} 1... Nf6 {[%clk 0:02:24.2]} 2. Bb2 {[%clk 0:03:03.8]}
2... g6 {[%clk 0:02:24.8]} 3. e3 {[%clk 0:03:04]} 3... Bg7 {[%clk 0:02:25.4]} 4.
f4 {[%clk 0:03:05.6]} 4... O-O {[%clk 0:02:25.5]} 5. Nf3 {[%clk 0:03:07]} 5...
c5 {[%clk 0:02:25.7]} 6. Be2 {[%clk 0:03:08.4]} 6... Nc6 {[%clk 0:02:26.9]} 7.
O-O {[%clk 0:03:09.9]} 7... d5 {[%clk 0:02:28.3]} 8. Qe1 {[%clk 0:03:11.5]} 8...
d4 {[%clk 0:02:27.7]} 9. Qh4 {[%clk 0:03:08.5]} 9... Bf5 {[%clk 0:02:22.3]} 10.
Na3 {[%clk 0:03:02.9]} 10... d3 {[%clk 0:01:46.6]} 11. cxd3 {[%clk 0:02:52.1]}
11... Bxd3 {[%clk 0:01:47.6]} 12. Bxd3 {[%clk 0:02:27.4]} 12... Qxd3 {[%clk
0:01:48.1]} 13. Rac1 {[%clk 0:02:29.1]} 13... b6 {[%clk 0:01:38.1]} 14. Nc4
{[%clk 0:02:13.6]} 14... Nd7 {[%clk 0:00:55.6]} 15. Bxg7 {[%clk 0:01:25.8]}
15... Kxg7 {[%clk 0:00:57.5]} 16. Nce5 {[%clk 0:01:25.2]} 16... Ndxe5 {[%clk
0:00:53.5]} 17. Nxe5 {[%clk 0:01:16.6]} 17... Nxe5 {[%clk 0:00:54.2]} 18. fxe5
{[%clk 0:01:18.5]} 18... Qxd2 {[%clk 0:00:47.5]} 19. Qxe7 {[%clk 0:01:16.5]}
19... Qxe3+ {[%clk 0:00:45.1]} 20. Kh1 {[%clk 0:01:17.8]} 20... Rae8 {[%clk
0:00:45]} 21. Qxa7 {[%clk 0:01:11.4]} 21... Rxe5 {[%clk 0:00:41.2]} 22. Qxb6
{[%clk 0:01:12.5]} 22... Rf5 {[%clk 0:00:31.2]} 23. h3 {[%clk 0:00:54.8]} 23...
Re8 {[%clk 0:00:25.3]} 24. a4 {[%clk 0:00:36.7]} 24... Re6 {[%clk 0:00:23.1]}
25. Qb5 {[%clk 0:00:30]} 25... Ref6 {[%clk 0:00:21.9]} 26. Rfe1 {[%clk
0:00:25.7]} 26... Qg3 {[%clk 0:00:23]} 27. Rf1 {[%clk 0:00:18.5]} 27... Rf2
{[%clk 0:00:22.5]} 28. Rxf2 {[%clk 0:00:18.3]} 28... Rxf2 {[%clk 0:00:23.1]} 29.
Rg1 {[%clk 0:00:19]} 29... g5 {[%clk 0:00:20.2]} 30. Qxc5 {[%clk 0:00:19.2]}
30... f6 {[%clk 0:00:19.6]} 31. Qe7+ {[%clk 0:00:18.5]} 31... Kg6 {[%clk
0:00:20.5]} 32. Qe4+ {[%clk 0:00:20.1]} 32... f5 {[%clk 0:00:20.3]} 33. Qe6+
{[%clk 0:00:21.3]} 33... Kh5 {[%clk 0:00:21.4]} 34. Qf7+ {[%clk 0:00:22]} 34...
Kh6 {[%clk 0:00:21.8]} 35. Qf6+ {[%clk 0:00:23]} 35... Kh5 {[%clk 0:00:23]} 36.
Qg7 {[%clk 0:00:24]} 36... h6 {[%clk 0:00:23.2]} 37. Qf7+ {[%clk 0:00:24.8]}
37... Kh4 {[%clk 0:00:23.7]} 38. Qg6 {[%clk 0:00:26.4]} 38... h5 {[%clk
0:00:24]} 39. a5 {[%clk 0:00:26.7]} 39... f4 {[%clk 0:00:23.5]} 40. Qe4 {[%clk
0:00:25.5]} 40... Ra2 {[%clk 0:00:15.7]} 41. b4 {[%clk 0:00:25.2]} 41... Qf2
{[%clk 0:00:14.7]} 42. g3+ {[%clk 0:00:18.4]} 42... Kxh3 {[%clk 0:00:13.8]} 43.
Qf5+ {[%clk 0:00:19.9]} 43... g4 {[%clk 0:00:11.5]} 44. Qxh5# {[%clk 0:00:20.9]}
1-0

[Event "*** Titled Tuesday Blitz"]
[Site "Chess.com"]
[Date "2018.04.03"]
[Round "4"]
[White "ChessWarrior7197"]
[Black "Abrito99"]
[Result "0-1"]
[WhiteElo "2651"]
[BlackElo "2451"]
[TimeControl "180+2"]
[EndTime "13:51:50 PDT"]
[Termination "Abrito99 won by resignation"]

1. e4 {[%clk 0:03:01.9]} 1... c5 {[%clk 0:02:58.3]} 2. Nf3 {[%clk 0:03:02.5]}
2... e6 {[%clk 0:02:57.8]} 3. d4 {[%clk 0:03:03.5]} 3... cxd4 {[%clk 0:02:59.3]}
4. Nxd4 {[%clk 0:03:05]} 4... Nc6 {[%clk 0:03:00.8]} 5. Nc3 {[%clk 0:03:05.6]}
5... Qc7 {[%clk 0:03:01.4]} 6. g3 {[%clk 0:03:06.9]} 6... a6 {[%clk 0:03:00]} 7.
Bg2 {[%clk 0:03:08]} 7... h5 {[%clk 0:03:00.9]} 8. O-O {[%clk 0:03:01.4]} 8...
h4 {[%clk 0:03:01.8]} 9. Re1 {[%clk 0:03:00.4]} 9... Nf6 {[%clk 0:02:51.1]} 10.
Nxc6 {[%clk 0:02:59.3]} 10... dxc6 {[%clk 0:02:47.1]} 11. e5 {[%clk 0:03:00.2]}
11... Nd5 {[%clk 0:02:47.3]} 12. Ne4 {[%clk 0:02:48.3]} 12... hxg3 {[%clk
0:02:37.1]} 13. hxg3 {[%clk 0:02:47.7]} 13... b5 {[%clk 0:02:10.7]} 14. Bg5
{[%clk 0:02:39.1]} 14... Bb7 {[%clk 0:01:57.2]} 15. c3 {[%clk 0:02:36.3]} 15...
c5 {[%clk 0:01:45.7]} 16. b3 {[%clk 0:02:37.2]} 16... c4 {[%clk 0:01:35.5]} 17.
b4 {[%clk 0:02:38]} 17... a5 {[%clk 0:01:23.4]} 18. a3 {[%clk 0:02:36.4]} 18...
Ra6 {[%clk 0:01:01]} 19. Qg4 {[%clk 0:02:32.8]} 19... axb4 {[%clk 0:00:56.2]}
20. axb4 {[%clk 0:02:32.5]} 20... Rxa1 {[%clk 0:00:56.2]} 21. Rxa1 {[%clk
0:02:34.4]} 21... Qxe5 {[%clk 0:00:57.6]} 22. Qd1 {[%clk 0:02:17.9]} 22... f5
{[%clk 0:00:49.1]} 23. Nc5 {[%clk 0:02:07.7]} 23... Bxc5 {[%clk 0:00:44.1]} 24.
bxc5 {[%clk 0:02:09.6]} 24... O-O {[%clk 0:00:42.9]} 25. Qd2 {[%clk 0:01:35.3]}
25... b4 {[%clk 0:00:42.1]} 26. Rb1 {[%clk 0:01:28.8]} 26... b3 {[%clk
0:00:41.9]} 27. Bf1 {[%clk 0:01:24.3]} 27... Qxc3 {[%clk 0:00:41]} 28. Qe2
{[%clk 0:01:12.7]} 28... Nc7 {[%clk 0:00:37.8]} 29. Bf4 {[%clk 0:01:03.5]} 29...
Be4 {[%clk 0:00:30.7]} 30. Rc1 {[%clk 0:01:04]} 30... Qa5 {[%clk 0:00:27.9]} 31.
Qxc4 {[%clk 0:01:01.3]} 31... b2 {[%clk 0:00:26.6]} 32. Rd1 {[%clk 0:00:34.4]}
32... b1=Q {[%clk 0:00:25.6]} 33. Rxb1 {[%clk 0:00:36]} 33... Bxb1 {[%clk
0:00:27.1]} 34. Qd4 {[%clk 0:00:36.8]} 34... Nd5 {[%clk 0:00:24.2]} 35. Bd6
{[%clk 0:00:35.6]} 35... Rf6 {[%clk 0:00:21]} 36. Be5 {[%clk 0:00:35.5]} 36...
Rh6 {[%clk 0:00:17.3]} 37. Bxg7 {[%clk 0:00:34.5]} 37... Rh7 {[%clk 0:00:18.8]}
38. Qe5 {[%clk 0:00:28.8]} 38... Be4 {[%clk 0:00:13.7]} 39. f3 {[%clk
0:00:26.7]} 39... Qxc5+ {[%clk 0:00:13]} 0-1